bitfinex/quotes_BTCUSD_20241211
["timestamp","ask_amount","ask_price","bid_price","bid_amount"]
[1733922825724,0.22192032,98360.0,98359.0,0.23343782]
[1733922825922,0.2034199,98360.0,98359.0,0.34111758]
[1733922827342,0.2034199,98360.0,98359.0,0.01167804]
[1733922827541,0.2264199,98360.0,98359.0,0.01167804]
[1733922827999,0.2264199,98360.0,98359.0,0.002]
[1733922828542,0.2264199,98360.0,98359.0,0.01167804]
[1733922829029,0.24493494,98360.0,98359.0,0.1193578]
[1733922829241,0.24493494,98360.0,98359.0,0.01167804]
[1733922830911,0.24493494,98360.0,98359.0,0.1193578]
[1733922831129,0.24493494,98360.0,98359.0,0.01167804]
[1733922832429,0.24493494,98360.0,98359.0,0.1193578]
[1733922832848,0.24493494,98360.0,98359.0,0.01167804]
[1733922834096,0.39493494,98360.0,98359.0,0.01167804]
[1733922834361,0.39493494,98360.0,98359.0,0.002]
[1733922835197,0.4266311,98360.0,98359.0,0.002]
[1733922835427,0.51786014,98360.0,98359.0,0.002]
[1733922835604,0.4266311,98360.0,98359.0,0.002]
[1733922836015,0.51786728,98360.0,98359.0,0.002]
[1733922836894,0.203347,98354.0,98353.0,0.13875978]
[1733922837095,0.37186204,98354.0,98353.0,0.13875978]
[1733922838883,0.37386204,98354.0,98353.0,0.13875978]
[1733922839305,0.36855116,98354.0,98353.0,0.13875978]
[1733922840109,0.36960048,98354.0,98353.0,0.13875978]
[1733922841044,0.36960048,98354.0,98353.0,0.12875978]
[1733922841423,0.38025838,98354.0,98353.0,0.13863699]
[1733922842000,0.38025838,98354.0,98353.0,0.12875978]
[1733922842325,0.36169402,98354.0,98353.0,0.13863699]
[1733922842523,0.38026877,98354.0,98353.0,0.13863699]
[1733922846020,0.03223265,98354.0,98353.0,0.37566223]
[1733922846407,0.002,98354.0,98353.0,0.48334199]
[1733922846773,0.003,98354.0,98353.0,0.48334199]
[1733922846974,0.001,98354.0,98353.0,0.48334199]
[1733922847126,0.01857475,98355.0,98354.0,0.23643954]
[1733922847332,0.02915206,98355.0,98354.0,0.34176478]
[1733922847537,0.02915206,98355.0,98354.0,0.35163895]
[1733922847913,0.01057731,98355.0,98354.0,0.35163895]
[1733922848114,0.203343,98356.0,98354.0,0.35163895]
[1733922848319,0.203343,98356.0,98355.0,0.213005]
[1733922848748,0.203343,98356.0,98355.0,0.22287672]
[1733922849831,0.21381028,98356.0,98355.0,0.22287672]
[1733922850586,0.21481028,98356.0,98355.0,0.22487672]
[1733922851414,0.21381028,98356.0,98355.0,0.22487672]
[1733922853935,0.36381028,98356.0,98355.0,0.01187172]
[1733922854349,0.36381028,98356.0,98355.0,0.002]
[1733922855199,0.39750226,98356.0,98355.0,0.002]
[1733922855831,0.15,98355.0,98354.0,0.12875978]
[1733922856926,0.16890983,98355.0,98354.0,0.12875978]
[1733922857493,0.16990983,98355.0,98354.0,0.12875978]
[1733922857739,0.17190983,98355.0,98354.0,0.12875978]
[1733922860977,0.17190983,98355.0,98354.0,0.31118502]
[1733922861402,0.17190983,98355.0,98354.0,0.32106038]
[1733922862029,0.153,98355.0,98354.0,0.32106038]
[1733922863064,0.151,98355.0,98354.0,0.32106038]
[1733922863275,0.152,98355.0,98354.0,0.32106038]
[1733922863441,0.152,98355.0,98354.0,0.00987536]
[1733922863886,0.353347,98354.0,98353.0,0.12875978]
[1733922864319,0.353347,98354.0,98353.0,0.13863625]
[1733922865091,0.37181666,98354.0,98353.0,0.13863625]
[1733922866768,0.37281666,98354.0,98353.0,0.13863625]
[1733922867247,0.37181666,98354.0,98353.0,0.13863625]
[1733922867760,0.37281666,98354.0,98353.0,0.00987647]
[1733922867980,0.50091995,98354.0,98353.0,0.00987647]
[1733922868329,0.50091995,98354.0,98350.0,0.0001718]
[1733922868330,0.353349,98353.0,98350.0,0.0001718]
[1733922868453,0.24124781,98351.0,98350.0,0.0001718]
[1733922868657,0.20015878,98351.0,98350.0,0.0001718]
[1733922868877,0.20029127,98351.0,98350.0,0.0001718]
[1733922869557,0.29153788,98351.0,98350.0,0.0001718]
[1733922869961,0.05029127,98351.0,98350.0,0.0001718]
[1733922870166,0.08370255,98351.0,98350.0,0.0001718]
[1733922870703,0.08070255,98351.0,98350.0,0.0001718]
[1733922870905,0.23470255,98351.0,98350.0,0.0001718]
[1733922871107,0.23870255,98351.0,98350.0,0.0001718]
[1733922871332,0.28168207,98351.0,98350.0,0.0001718]
[1733922871811,0.50968132,98351.0,98350.0,0.0001718]
[1733922872009,0.51006857,98351.0,98350.0,0.0001718]
[1733922872416,0.25166421,98351.0,98350.0,0.0001718]
[1733922872622,0.28205713,98351.0,98350.0,0.0001718]
[1733922874552,0.46436403,98351.0,98350.0,0.0001718]
[1733922875415,0.28203211,98351.0,98350.0,0.0001718]
[1733922876513,0.46429447,98351.0,98350.0,0.0001718]
[1733922877493,0.28203211,98351.0,98350.0,0.0001718]
[1733922878515,0.30819388,98351.0,98350.0,0.0001718]
[1733922878929,0.28203211,98351.0,98350.0,0.0001718]
[1733922879549,0.46426162,98351.0,98350.0,0.0001718]
[1733922881888,0.28203211,98351.0,98350.0,0.0001718]
[1733922882063,0.26303613,98351.0,98350.0,0.0001718]
[1733922882300,0.28201579,98351.0,98350.0,0.0001718]
[1733922882721,0.15,98331.0,98319.0,0.0782]
[1733922882934,0.15,98319.0,98313.0,0.1235]
[1733922883148,0.203427,98315.0,98313.0,0.1235]
[1733922883348,0.16897967,98314.0,98313.0,0.1235]
[1733922883757,0.203431,98313.0,98306.0,0.0768]
[1733922883965,0.203436,98311.0,98306.0,0.0768]
[1733922884139,0.37241567,98311.0,98306.0,0.0768]
[1733922885541,0.37341567,98311.0,98306.0,0.0768]
[1733922886485,0.37341567,98311.0,98300.0,0.20625978]
[1733922887097,0.37341567,98311.0,98294.0,0.0488]
[1733922887098,0.39741567,98311.0,98294.0,0.0488]
[1733922887296,0.37441567,98311.0,98296.0,0.23643954]
[1733922887645,0.37441567,98311.0,98294.0,0.0488]
[1733922887646,0.37441567,98311.0,98310.0,0.0787718]
[1733922887846,0.37441567,98311.0,98310.0,0.1260718]
[1733922888878,0.37241567,98311.0,98310.0,0.25483158]
[1733922889168,0.37541567,98311.0,98310.0,0.25483158]
[1733922889314,0.37941567,98311.0,98310.0,0.25483158]
[1733922889945,0.360436,98311.0,98310.0,0.25483158]
[1733922890346,0.007,98311.0,98310.0,0.36251134]
[1733922890772,0.157,98311.0,98310.0,0.36251134]
[1733922891530,0.007,98311.0,98310.0,0.46783658]
[1733922892024,0.004,98311.0,98310.0,0.46783658]
[1733922892650,0.01079281,98313.0,98312.0,0.31913954]
[1733922892845,5.512e-05,98314.0,98313.0,0.23643954]
[1733922893280,0.01079352,98314.0,98313.0,0.23643954]
[1733922893481,5.512e-05,98314.0,98313.0,0.23643954]
[1733922893681,5.512e-05,98314.0,98313.0,0.47436478]
[1733922894272,5.512e-05,98314.0,98313.0,0.36668502]
[1733922894477,5.512e-05,98314.0,98313.0,0.47436478]
[1733922895505,5.512e-05,98314.0,98313.0,0.48657866]
[1733922895711,5.512e-05,98314.0,98313.0,0.48457866]
[1733922896064,5.512e-05,98314.0,98313.0,0.48857866]
[1733922896468,5.512e-05,98314.0,98313.0,0.48557866]
[1733922897039,0.00105512,98314.0,98313.0,0.49157866]
[1733922898456,0.00105512,98314.0,98313.0,0.49457866]
[1733922919491,0.00105512,98314.0,98313.0,0.44467866]
[1733922919718,0.02004236,98314.0,98313.0,0.12789364]
[1733922919945,0.02004236,98314.0,98313.0,0.25665342]
[1733922920536,0.02004236,98314.0,98313.0,0.25365342]
[1733922920729,0.00105512,98314.0,98313.0,0.25365342]
[1733922920867,0.0310182,98314.0,98313.0,0.25365342]
[1733922921074,0.0310182,98314.0,98313.0,0.12489364]
[1733922921272,0.03001708,98314.0,98313.0,0.12489364]
[1733922921489,0.03001708,98314.0,98313.0,0.01721388]
[1733922921695,0.06242022,98314.0,98313.0,0.12489364]
[1733922922016,0.3666547,98314.0,98313.0,0.007]
[1733922922229,0.31462022,98314.0,98313.0,0.01617063]
[1733922922490,0.579862,98313.0,98310.0,0.0001718]
[1733922922729,0.376436,98311.0,98310.0,0.0001718]
[1733922922923,0.45747077,98311.0,98310.0,0.0001718]
[1733922923463,0.4258411,98311.0,98310.0,0.0001718]
[1733922923887,0.42580295,98311.0,98310.0,0.0001718]
[1733922924296,0.42580295,98311.0,98295.0,0.12875978]
[1733922924297,0.203467,98296.0,98295.0,0.12875978]
[1733922924540,0.203467,98296.0,98290.0,0.0001716]
[1733922924541,0.43348362,98296.0,98290.0,0.0001716]
[1733922924748,0.43348362,98296.0,98295.0,0.00577795]
[1733922924749,0.4375055,98296.0,98295.0,0.00577795]
[1733922924982,0.4375055,98296.0,98290.0,0.0001716]
[1733922924983,0.15,98291.0,98290.0,0.0001716]
[1733922925129,0.15,98291.0,98268.0,0.6738554]
[1733922925130,0.353498,98281.0,98268.0,0.6738554]
[1733922925336,0.37247612,98281.0,98268.0,0.6738554]
[1733922925913,0.37247612,98281.0,98267.0,0.12875978]
[1733922926338,0.39242769,98281.0,98272.0,0.12875978]
[1733922926539,0.39242769,98281.0,98275.0,0.12875978]
[1733922926739,0.39242769,98281.0,98280.0,0.01080365]
[1733922926740,0.37247612,98281.0,98280.0,0.01080365]
[1733922926994,0.3829532,98281.0,98280.0,0.01080365]
[1733922927161,0.3839532,98281.0,98280.0,0.01080365]
[1733922927589,0.3849532,98281.0,98280.0,0.01080365]
[1733922928214,0.4079532,98281.0,98280.0,0.01080365]
[1733922928548,0.4079532,98281.0,98280.0,0.42816843]
[1733922928549,0.02097812,98281.0,98280.0,0.42816843]
[1733922928720,0.002,98281.0,98280.0,0.47536843]
[1733922929329,0.002,98281.0,98280.0,0.42816843]
[1733922929546,0.002,98281.0,98280.0,0.01080365]
[1733922929744,0.04567937,98281.0,98280.0,0.01080365]
[1733922929887,0.06867937,98281.0,98280.0,0.01080365]
[1733922930111,0.025,98281.0,98280.0,0.00072671]
[1733922930329,0.03539391,98281.0,98280.0,0.00072671]
[1733922931094,0.03439391,98281.0,98280.0,0.00072671]
[1733922931308,0.32088713,98281.0,98280.0,0.00072671]
[1733922931511,0.32088713,98281.0,98280.0,0.00172671]
[1733922931512,0.61201477,98281.0,98280.0,0.00172671]
[1733922931711,0.41984398,98281.0,98280.0,0.00172671]
[1733922931915,0.52563397,98281.0,98280.0,0.00172671]
[1733922932118,0.5558778,98281.0,98280.0,0.00172671]
[1733922932321,0.31374069,98281.0,98280.0,0.00172671]
[1733922932530,0.29149686,98281.0,98280.0,0.00272671]
[1733922932951,0.14293814,98281.0,98280.0,0.00072671]
[1733922933154,0.20229686,98281.0,98280.0,0.00072671]
[1733922933304,0.20229686,98281.0,98280.0,0.00172671]
[1733922933305,0.21729686,98281.0,98280.0,0.00172671]
[1733922933508,0.20829686,98281.0,98280.0,0.00072671]
[1733922933710,0.20229686,98281.0,98280.0,0.00072671]
[1733922933916,0.21129686,98281.0,98280.0,0.00172671]
[1733922934095,0.06729686,98281.0,98280.0,0.00172671]
[1733922935445,0.06729686,98281.0,98280.0,0.00072671]
[1733922935446,0.03939391,98281.0,98280.0,0.00072671]
[1733922935797,0.04839391,98281.0,98280.0,0.00172671]
[1733922936203,0.04839391,98281.0,98280.0,0.00072671]
[1733922936204,0.03339391,98281.0,98280.0,0.00072671]
[1733922936411,0.04239391,98281.0,98280.0,0.00172671]
[1733922936896,0.03739391,98281.0,98280.0,0.00072671]
[1733922937110,0.03339391,98281.0,98280.0,0.00072671]
[1733922937299,0.04639391,98281.0,98280.0,0.00172671]
[1733922937509,0.173,98273.0,98270.0,0.0001716]
[1733922937719,0.173,98271.0,98270.0,0.0001716]
[1733922938071,0.19185533,98271.0,98270.0,0.0001716]
[1733922938271,0.21213011,98271.0,98270.0,0.0001716]
[1733922939562,0.22013011,98271.0,98270.0,0.0011716]
[1733922939767,0.22413011,98271.0,98270.0,0.0011716]
[1733922939962,0.23788956,98271.0,98270.0,0.0001716]
[1733922940177,0.25273436,98271.0,98270.0,0.0001716]
[1733922940379,0.25273436,98271.0,98270.0,0.0011716]
[1733922940380,0.23058268,98271.0,98270.0,0.0011716]
[1733922940578,0.23458268,98271.0,98270.0,0.0011716]
[1733922941042,0.27294421,98271.0,98270.0,0.0011716]
[1733922941256,0.173,98253.0,98247.0,0.0809]
[1733922941502,0.1918448,98253.0,98243.0,0.04626412]
[1733922941710,0.15,98243.0,98239.0,0.0756]
[1733922941924,0.15,98243.0,98231.0,0.12915978]
[1733922941925,0.023,98242.0,98235.0,0.04626412]
[1733922942872,0.023,98242.0,98231.0,0.12915978]
[1733922942873,0.173,98241.0,98240.0,0.00028951]
[1733922943073,0.19183912,98241.0,98240.0,0.00028951]
[1733922943289,0.19182951,98241.0,98240.0,0.00028951]
[1733922944582,0.19882951,98241.0,98240.0,0.00028951]
[1733922944785,0.19582951,98241.0,98240.0,0.00028951]
[1733922946480,0.184,98241.0,98240.0,0.00028951]
[1733922946675,0.2028286,98241.0,98240.0,0.00028951]
[1733922949865,0.20285257,98241.0,98240.0,0.00028951]
[1733922950335,0.20286334,98241.0,98240.0,0.01068345]
[1733922950548,0.20286334,98241.0,98240.0,0.00028951]
[1733922950756,0.20286334,98241.0,98240.0,0.01068345]
[1733922950937,0.20286334,98241.0,98240.0,0.00028951]
[1733922951154,0.20286334,98241.0,98240.0,0.01068345]
[1733922951363,0.20286334,98241.0,98240.0,0.00028951]
[1733922951572,0.20286334,98241.0,98240.0,0.01068345]
[1733922951781,0.20286334,98241.0,98240.0,0.00028951]
[1733922951990,0.20286334,98241.0,98240.0,0.01068345]
[1733922952195,0.20286334,98241.0,98240.0,0.00028951]
[1733922952408,0.20286334,98241.0,98240.0,0.01068345]
[1733922952608,0.20286334,98241.0,98240.0,0.00028951]
[1733922952814,0.20286334,98241.0,98240.0,0.01068345]
[1733922953220,0.20287949,98241.0,98234.0,0.04626412]
[1733922953437,0.353593,98235.0,98234.0,0.04636487]
[1733922953642,0.37247249,98235.0,98234.0,0.04636487]
[1733922954075,0.37247249,98235.0,98234.0,0.00010075]
[1733922954295,0.40267968,98235.0,98234.0,0.00010075]
[1733922955349,0.42567968,98235.0,98234.0,0.00010075]
[1733922955764,0.203599,98232.0,98231.0,0.0004]
[1733922955972,0.40268568,98232.0,98231.0,0.000455]
[1733922956189,0.47808568,98232.0,98231.0,0.000455]
[1733922956406,0.47808568,98232.0,98189.0,0.12875978]
[1733922956407,0.353641,98212.0,98189.0,0.12875978]
[1733922956643,0.353663,98201.0,98194.0,0.04626412]
[1733922956854,0.353663,98201.0,98200.0,0.00306534]
[1733922956855,0.40274968,98201.0,98200.0,0.00306534]
[1733922957288,0.353682,98192.0,98172.0,0.12875978]
[1733922957532,0.353682,98192.0,98189.0,0.12875978]
[1733922957533,0.40276868,98192.0,98189.0,0.12875978]
[1733922957741,0.40276868,98192.0,98160.0,0.15]
[1733922957742,0.01887949,98192.0,98191.0,0.36360416]
[1733922957988,0.01887949,98192.0,98191.0,0.37098232]
[1733922958606,0.20368,98193.0,98191.0,0.37098232]
[1733922958813,0.353668,98199.0,98195.0,0.1750239]
[1733922959019,0.353668,98199.0,98191.0,0.09063318]
[1733922959020,0.15,98199.0,98198.0,0.1750239]
[1733922959225,0.16887939,98199.0,98198.0,0.1750239]
[1733922959432,0.19187939,98199.0,98198.0,0.18239292]
[1733922959643,0.008,98201.0,98200.0,0.04626412]
[1733922959853,0.15,98203.0,98202.0,0.04626412]
[1733922960057,0.03020704,98206.0,98203.0,0.04626412]
[1733922960261,0.11932638,98208.0,98205.0,0.04626412]
[1733922960475,0.03020704,98210.0,98209.0,0.04626412]
[1733922960708,0.01851886,98211.0,98209.0,0.04626412]
[1733922960913,0.023,98210.0,98209.0,0.05360606]
[1733922961124,0.226645,98210.0,98209.0,0.05360606]
[1733922961347,0.24516386,98210.0,98209.0,0.05360606]
[1733922961763,0.376645,98210.0,98209.0,0.05360606]
[1733922961967,0.39508023,98210.0,98209.0,0.05360606]
[1733922962171,0.39508023,98210.0,98209.0,0.04626412]
[1733922963529,0.39508023,98210.0,98209.0,0.1750239]
[1733922964007,0.39508023,98210.0,98209.0,0.18236369]
[1733922964224,0.39508023,98210.0,98209.0,0.28768893]
[1733922964528,0.04143523,98210.0,98209.0,0.28768893]
[1733922964685,0.023,98210.0,98209.0,0.28768893]
[1733922965063,0.15,98214.0,98211.0,0.1242]
[1733922965272,0.15,98215.0,98212.0,0.10532524]
[1733922965475,0.16847772,98215.0,98214.0,0.1750239]
[1733922965705,0.15,98215.0,98214.0,0.28034914]
[1733922965973,0.15,98215.0,98214.0,0.28767399]
[1733922966273,0.19145223,98215.0,98214.0,0.28767399]
[1733922966827,0.19245223,98215.0,98214.0,0.28767399]
[1733922967040,0.19345223,98215.0,98214.0,0.28767399]
[1733922968645,0.175,98215.0,98214.0,0.28767399]
[1733922968912,0.04362739,98215.0,98214.0,0.28767399]
[1733922969129,0.025,98215.0,98214.0,0.28767399]
[1733922972946,0.025,98215.0,98214.0,0.36517399]
[1733922977265,0.025,98215.0,98214.0,0.28767399]
[1733922977895,0.025,98215.0,98214.0,0.32220987]
[1733922978105,0.025,98215.0,98214.0,0.41527399]
[1733922979846,0.002,98215.0,98214.0,0.56527399]
[1733922980048,0.002,98215.0,98214.0,0.71527399]
[1733922981167,0.001,98215.0,98214.0,0.71527399]
[1733922981401,0.002,98215.0,98214.0,0.71527399]
[1733922981810,8.6e-05,98220.0,98219.0,0.1750239]
[1733922982017,8.6e-05,98220.0,98219.0,0.35996707]
[1733922982223,8.6e-05,98220.0,98219.0,0.36544509]
[1733922982849,8.6e-05,98220.0,98219.0,0.66544509]
[1733922983051,8.6e-05,98220.0,98219.0,1.25074509]
[1733922984206,8.6e-05,98250.0,98249.0,0.2520239]
[1733922984411,8.6e-05,98250.0,98249.0,0.36376907]
[1733922987430,0.023086,98250.0,98249.0,0.36376907]
[1733922988025,8.6e-05,98250.0,98249.0,0.36476907]
[1733922988228,8.6e-05,98250.0,98249.0,0.36376907]
[1733922988591,8.6e-05,98250.0,98249.0,0.36476907]
[1733922988971,0.226648,98250.0,98249.0,0.36476907]
[1733922989178,0.226648,98250.0,98249.0,0.28776907]
[1733922989631,0.226648,98250.0,98249.0,0.05368405]
[1733922989801,0.226648,98250.0,98249.0,0.00741993]
[1733922990211,0.376648,98250.0,98249.0,0.00741993]
[1733922990868,0.378648,98250.0,98249.0,0.00741993]
[1733922991105,0.378648,98250.0,98249.0,0.00641993]
[1733922991502,0.381648,98250.0,98249.0,5.502e-05]
[1733922991742,0.378648,98250.0,98249.0,0.00645854]
[1733922991932,0.39706876,98250.0,98249.0,5.502e-05]
[1733922992123,0.40006876,98250.0,98249.0,5.502e-05]
[1733922992305,0.39506876,98250.0,98249.0,5.502e-05]
[1733922993296,0.4055362,98250.0,98249.0,5.502e-05]
[1733922993489,0.54170585,98250.0,98249.0,5.502e-05]
[1733922993690,0.54370585,98250.0,98249.0,5.502e-05]
[1733922994445,0.52528509,98250.0,98249.0,5.502e-05]
[1733922994619,0.5416522,98250.0,98249.0,5.502e-05]
[1733922995031,0.5446522,98250.0,98249.0,5.502e-05]
[1733922995441,0.5416522,98250.0,98249.0,5.502e-05]
[1733922995603,0.5456522,98250.0,98249.0,5.502e-05]
[1733922996254,0.5486522,98250.0,98249.0,5.502e-05]
[1733922997873,0.53028509,98250.0,98249.0,5.502e-05]
[1733922998083,0.65385939,98250.0,98249.0,5.502e-05]
[1733922998286,0.49921873,98250.0,98249.0,2e-08]
[1733922998483,0.88182023,98250.0,98249.0,2e-08]
[1733922998944,0.77271694,98250.0,98249.0,2e-08]
[1733922999139,0.87504218,98250.0,98249.0,2e-08]
[1733922999383,1.26359589,98250.0,98249.0,2e-08]
[1733922999587,0.203628,98218.0,98217.0,0.04626412]
[1733922999793,0.24510183,98218.0,98217.0,0.04626412]
[1733923000009,0.24510183,98218.0,98217.0,0.05276363]
[1733923000386,0.24510183,98218.0,98217.0,0.04626412]
[1733923002376,0.226628,98218.0,98217.0,0.04626412]
[1733923006395,0.226628,98218.0,98217.0,0.28034914]
[1733923006607,0.203617,98224.0,98222.0,0.12875978]
[1733923006822,0.203617,98224.0,98223.0,0.1750239]
[1733923007046,0.203617,98224.0,98223.0,0.18151642]
[1733923008083,0.226617,98224.0,98223.0,0.18151642]
[1733923008488,0.23686101,98224.0,98223.0,0.18151642]
[1733923008830,0.23786101,98224.0,98223.0,0.18151642]
[1733923009242,0.23686101,98224.0,98223.0,0.18151642]
[1733923009636,0.23786101,98224.0,98223.0,0.18151642]
[1733923009838,0.23886101,98224.0,98223.0,0.18151642]
[1733923011118,0.228617,98224.0,98223.0,0.18151642]
[1733923011790,0.227617,98224.0,98223.0,0.18151642]
[1733923012135,0.226617,98224.0,98223.0,0.23031642]
[1733923012337,0.226617,98224.0,98223.0,0.33564166]
[1733923012747,0.226605,98229.0,98228.0,0.1750239]
[1733923012950,0.226605,98229.0,98228.0,0.2501239]
[1733923013153,0.226605,98229.0,98228.0,0.25660043]
[1733923013750,0.023,98229.0,98228.0,0.36192567]
[1733923013967,0.203589,98237.0,98236.0,0.1750239]
[1733923014168,0.203589,98237.0,98236.0,0.28034914]
[1733923014373,0.203589,98237.0,98236.0,0.28680429]
[1733923014999,0.203585,98239.0,98238.0,0.1750239]
[1733923015238,0.226585,98239.0,98238.0,0.1750239]
[1733923015450,0.226585,98239.0,98238.0,0.18147413]
[1733923015877,0.226574,98244.0,98243.0,0.04626412]
[1733923016156,0.226574,98244.0,98243.0,0.1750239]
[1733923016426,0.226574,98244.0,98243.0,0.1814565]
[1733923016634,0.226574,98244.0,98243.0,0.33218174]
[1733923016837,0.203574,98244.0,98243.0,0.33218174]
[1733923017934,0.226574,98244.0,98243.0,0.33218174]
[1733923019023,0.203567,98248.0,98246.0,0.12875978]
[1733923019024,0.023,98247.0,98246.0,0.12875978]
[1733923019215,0.023,98247.0,98246.0,0.28034914]
[1733923019420,0.023,98247.0,98246.0,0.28677436]
[1733923020877,0.024,98247.0,98246.0,0.28677436]
[1733923021930,0.001,98247.0,98246.0,0.36537436]
[1733923022366,0.024,98247.0,98246.0,0.36537436]
[1733923022592,0.024,98247.0,98246.0,0.05268934]
[1733923023021,0.23853592,98247.0,98238.0,0.12875978]
[1733923023231,0.226585,98239.0,98238.0,0.1750239]
[1733923024716,0.227585,98239.0,98238.0,0.1750239]
[1733923025145,0.24652042,98239.0,98238.0,0.1750239]
[1733923025576,0.24752042,98239.0,98238.0,0.1750239]
[1733923026228,0.24651808,98239.0,98238.0,0.1750239]
[1733923026696,0.24554968,98239.0,98238.0,0.1750239]
[1733923027524,0.25598244,98239.0,98238.0,0.1750239]
[1733923035290,0.24554968,98239.0,98238.0,0.35994914]
[1733923035498,0.24554968,98239.0,98238.0,0.36639]
[1733923036840,0.24454968,98239.0,98238.0,0.36639]
[1733923037053,0.24354968,98239.0,98238.0,0.36639]
[1733923037266,0.24554968,98239.0,98238.0,0.35994914]
[1733923037472,0.24454968,98239.0,98238.0,0.35994914]
[1733923037698,0.24454968,98239.0,98238.0,0.36639]
[1733923038125,0.24554968,98239.0,98238.0,0.36639]
[1733923045004,0.02093308,98239.0,98238.0,0.36639]
[1733923045214,0.002,98239.0,98238.0,0.41219]
[1733923046233,0.001,98239.0,98238.0,0.41219]
[1733923046720,0.002,98239.0,98238.0,0.41219]
[1733923047126,0.001,98239.0,98238.0,0.41219]
[1733923047766,8.6e-05,98250.0,98249.0,0.2566239]
[1733923047967,8.6e-05,98250.0,98249.0,0.36194914]
[1733923048174,8.6e-05,98250.0,98249.0,0.36835761]
[1733923049839,8.6e-05,98250.0,98249.0,0.41805761]
[1733923051261,8.6e-05,98250.0,98249.0,0.56805761]
[1733923051856,0.001086,98250.0,98249.0,0.56805761]
[1733923052450,0.001086,98250.0,98249.0,0.41805761]
[1733923052655,0.001086,98250.0,98249.0,0.42205761]
[1733923053090,0.001086,98250.0,98249.0,0.41805761]
[1733923053091,8.6e-05,98250.0,98249.0,0.41805761]
[1733923053488,0.001086,98250.0,98249.0,0.42505761]
[1733923053941,8.6e-05,98250.0,98249.0,0.41805761]
[1733923054108,0.001086,98250.0,98249.0,0.42405761]
[1733923054584,8.6e-05,98250.0,98249.0,0.41805761]
[1733923054769,8.6e-05,98250.0,98249.0,0.57405761]
[1733923054970,0.001086,98250.0,98249.0,0.57405761]
[1733923055186,0.001086,98250.0,98249.0,1.11055761]
[1733923055336,0.002086,98250.0,98249.0,1.11455761]
[1733923055966,0.001086,98250.0,98249.0,1.11055761]
[1733923056804,0.002086,98250.0,98249.0,1.11455761]
[1733923057558,0.002086,98250.0,98249.0,1.41455761]
[1733923058871,0.001087,98250.0,98249.0,1.41455761]
[1733923059252,0.001087,98250.0,98249.0,0.96455761]
[1733923059479,0.001087,98250.0,98249.0,0.91829349]
[1733923059680,0.001087,98250.0,98249.0,0.96455761]
[1733923061069,0.001,98250.0,98249.0,0.42205761]
[1733923061470,0.203553,98255.0,98254.0,0.12875978]
[1733923061674,0.203553,98255.0,98254.0,0.28710053]
[1733923062488,0.203544,98259.0,98254.0,0.28710053]
[1733923062696,0.203544,98259.0,98258.0,0.04626412]
[1733923062904,0.203544,98259.0,98258.0,0.2870907]
[1733923063311,0.203544,98259.0,98258.0,0.24082658]
[1733923063522,0.203544,98259.0,98258.0,0.2870907]
[1733923063930,0.2037094,98259.0,98258.0,0.2870907]
[1733923064980,0.2047094,98259.0,98258.0,0.2890907]
[1733923065805,0.2047094,98259.0,98258.0,0.2920907]
[1733923071000,0.2047094,98259.0,98258.0,0.2890907]
[1733923071204,0.2047094,98259.0,98258.0,0.2900907]
[1733923071410,0.2037094,98259.0,98258.0,0.2880907]
[1733923071820,0.2037094,98259.0,98258.0,0.2890907]
[1733923072464,0.2047094,98259.0,98258.0,0.2910907]
[1733923080687,0.0011654,98259.0,98258.0,0.2910907]
[1733923084809,0.0011654,98259.0,98258.0,0.3715907]
[1733923086030,0.0011654,98259.0,98258.0,0.4209907]
[1733923086444,0.0011654,98259.0,98258.0,0.7209907]
[1733923087100,0.0033,98272.0,98271.0,0.6785419]
[1733923087313,0.0033,98272.0,98271.0,0.90666714]
[1733923087522,0.0033,98272.0,98271.0,0.91336824]
[1733923088369,0.0033,98272.0,98271.0,0.91636824]
[1733923088999,0.0033,98272.0,98271.0,0.91336824]
[1733923089203,0.0043,98272.0,98271.0,0.91836824]
[1733923089409,0.0053,98272.0,98271.0,0.92636824]
[1733923090198,0.0053,98272.0,98271.0,1.46286824]
[1733923090415,0.0053,98272.0,98271.0,1.61286824]
[1733923090618,8.59e-05,98290.0,98271.0,1.61286824]
[1733923090619,8.59e-05,98290.0,98289.0,0.5033049]
[1733923090821,8.59e-05,98290.0,98289.0,0.60863014]
[1733923091034,0.00063835,98290.0,98289.0,0.41179938]
[1733923092338,0.00063835,98290.0,98289.0,0.42479938]
[1733923092559,0.00163835,98290.0,98289.0,0.42479938]
[1733923092782,0.00063835,98290.0,98289.0,0.41579938]
[1733923093194,0.00163835,98290.0,98289.0,0.42479938]
[1733923093402,0.00163835,98290.0,98289.0,0.41579938]
[1733923093403,0.00063835,98290.0,98289.0,0.41579938]
[1733923093849,0.00163835,98290.0,98289.0,0.42079938]
[1733923094050,0.00163835,98290.0,98289.0,0.42579938]
[1733923094490,0.00163835,98290.0,98289.0,0.42079938]
[1733923094692,0.00163835,98290.0,98289.0,0.37509938]
[1733923094905,0.00163835,98290.0,98289.0,0.38009938]
[1733923095345,0.00163835,98290.0,98289.0,0.37509938]
[1733923095672,0.00063835,98290.0,98289.0,0.37109938]
[1733923095883,0.00063835,98290.0,98289.0,0.38009938]
[1733923096267,0.00063835,98290.0,98289.0,0.37109938]
[1733923096649,0.00063835,98290.0,98289.0,0.38009938]
[1733923096787,0.00063835,98290.0,98289.0,0.37109938]
[1733923096977,0.00063835,98290.0,98289.0,0.36609938]
[1733923097231,0.00163835,98290.0,98289.0,0.37109938]
[1733923097782,0.00063835,98290.0,98289.0,0.36609938]
[1733923098374,0.00163835,98290.0,98289.0,0.29999938]
[1733923098580,0.00163835,98290.0,98289.0,0.29499938]
[1733923098805,0.00063835,98290.0,98289.0,0.28699938]
[1733923099016,0.00263835,98290.0,98289.0,0.30099938]
[1733923099432,0.00163835,98290.0,98289.0,0.29199938]
[1733923099636,0.00263835,98290.0,98289.0,0.29999938]
[1733923100042,0.00163835,98290.0,98289.0,0.29199938]
[1733923100457,0.00263835,98290.0,98289.0,0.29999938]
[1733923101073,0.00163835,98290.0,98289.0,0.29499938]
[1733923101490,0.00163835,98290.0,98289.0,0.29899938]
[1733923101926,0.00163835,98290.0,98289.0,0.28699938]
[1733923101927,0.00063835,98290.0,98289.0,0.28699938]
[1733923102354,0.00163835,98290.0,98289.0,0.1702396]
[1733923102560,0.00063835,98290.0,98289.0,0.29099938]
[1733923102995,0.00163835,98290.0,98289.0,0.29899938]
[1733923105753,0.00163835,98290.0,98289.0,0.1702396]
[1733923106172,0.00163835,98290.0,98289.0,0.01865024]
[1733923107022,0.00163835,98290.0,98289.0,0.06491436]
[1733923107234,0.00163835,98290.0,98289.0,0.06091436]
[1733923107439,0.01180905,98290.0,98289.0,0.06191436]
[1733923107878,0.01180905,98290.0,98289.0,0.06091436]
[1733923108290,0.01180905,98290.0,98289.0,0.06191436]